bitfinex/quotes_SOLUSD_20241126
["timestamp","ask_amount","ask_price","bid_price","bid_amount"]
[1732582211009,23.776884,237.75,237.68,8.15542031]
[1732582211192,23.776884,237.75,237.61,10.5213]
[1732582211193,23.776884,237.71,237.64,8.15542031]
[1732582211627,20.0,237.68,237.52,1.55185287]
[1732582211929,20.0,237.68,237.62,8.15542031]
[1732582211930,23.776884,237.67,237.62,8.15542031]
[1732582212097,20.0,237.68,237.64,8.15542031]
[1732582212295,23.776884,237.73,237.64,8.15542031]
[1732582212496,20.0,237.71,237.66,8.15542031]
[1732582212702,23.776884,237.7,237.66,8.15542031]
[1732582213927,20.0,237.71,237.66,8.15542031]
[1732582214233,2.5237,237.74,237.68,8.15542031]
[1732582214409,23.776884,237.73,237.68,8.15542031]
[1732582214812,23.776884,237.73,237.66,8.15542031]
[1732582215018,8.15542031,237.7,237.62,8.15542031]
[1732582215313,23.776884,237.69,237.6,8.15542031]
[1732582216014,10.67982031,237.68,237.58,8.15542031]
[1732582216219,20.0,237.63,237.54,4.2097]
[1732582216413,20.0,237.59,237.47,24.1093]
[1732582216725,23.776884,237.65,237.49,8.15542031]
[1732582216726,8.15542031,237.56,237.49,8.15542031]
[1732582216929,23.776884,237.55,237.45,14.3072]
[1732582217132,20.0,237.52,237.45,8.15542031]
[1732582217424,20.0,237.52,237.39,10.0959]
[1732582217425,8.15542031,237.5,237.43,8.15542031]
[1732582217625,23.776884,237.49,237.41,8.15542031]
[1732582218014,2.5265,237.48,237.43,8.15542031]
[1732582218212,23.776884,237.49,237.45,8.15542031]
[1732582218436,23.776884,237.49,237.45,12.78375904]
[1732582218622,43.776884,237.51,237.45,12.78375904]
[1732582218803,15.30965904,237.54,237.45,12.78375904]
[1732582219004,23.776884,237.53,237.47,12.78375904]
[1732582219227,23.776884,237.53,237.45,12.78375904]
[1732582219408,12.78375904,237.52,237.45,12.78375904]
[1732582219623,23.776884,237.51,237.43,12.78375904]
[1732582219934,23.776884,237.51,237.45,12.78375904]
[1732582220133,2.5261,237.52,237.45,12.78375904]
[1732582220631,20.0,237.51,237.47,12.78375904]
[1732582221345,43.776884,237.53,237.47,12.78375904]
[1732582221545,23.776884,237.52,237.47,12.78375904]
[1732582222041,39.08674304,237.52,237.43,12.78375904]
[1732582222248,20.0,237.49,237.43,12.78375904]
[1732582222840,23.776884,237.48,237.41,12.78375904]
[1732582223847,2.5266,237.47,237.41,12.78375904]
[1732582224345,23.776884,237.46,237.41,12.78375904]
[1732582225448,10.0,237.57,237.39,12.78375904]
[1732582225449,20.0,237.45,237.39,12.78375904]
[1732582226347,20.0,237.45,237.43,12.78375904]
[1732582226553,26.303184,237.5,237.43,12.78375904]
[1732582226723,20.0,237.47,237.43,12.78375904]
[1732582227130,23.776884,237.46,237.41,12.78375904]
[1732582227454,23.776884,237.46,237.39,12.78375904]
[1732582228628,20.0,237.43,237.37,12.78375904]
[1732582228824,43.776884,237.42,237.35,13.27375424]
[1732582229328,20.0,237.4,237.35,13.27375424]
[1732582229530,20.0,237.39,237.35,13.27375424]
[1732582230058,20.0,237.39,237.38,12.78375904]
[1732582230546,2.5268,237.45,237.38,12.78375904]
[1732582230722,20.0,237.44,237.38,12.78375904]
[1732582231128,20.0,237.44,237.35,0.4899952]
[1732582231330,32.78375904,237.44,237.36,12.78375904]
[1732582232050,23.776884,237.43,237.36,12.78375904]
[1732582232437,12.78375904,237.42,237.35,0.4899952]
[1732582232633,26.304184,237.41,237.35,0.4899952]
[1732582234227,12.78375904,237.4,237.35,0.4899952]
[1732582234548,23.776884,237.39,237.35,0.4899952]
[1732582236131,20.0,237.37,237.35,0.4899952]
[1732582237265,23.776884,237.36,237.35,0.4899952]
[1732582237968,9.4885,237.43,237.35,0.4899952]
[1732582237969,20.0,237.4,237.35,0.4899952]
[1732582238155,20.0,237.36,237.35,0.4899952]
[1732582238675,20.0,237.3,237.16,25.3846]
[1732582238845,20.0,237.29,237.23,12.78375904]
[1732582240095,22.5285,237.29,237.23,12.78375904]
[1732582240272,22.5285,237.29,237.12,4.2171]
[1732582240273,20.0,237.23,237.12,4.2171]
[1732582240454,20.0,237.19,237.13,8.20197993]
[1732582241272,23.776884,237.18,237.13,8.20197993]
[1732582241571,20.0,237.23,237.15,8.20197993]
[1732582241773,20.0,237.19,237.15,8.20197993]
[1732582242162,23.776884,237.18,237.11,0.4899952]
[1732582242481,23.776884,237.18,237.12,12.82134134]
[1732582242847,20.0,237.19,237.14,12.82134134]
[1732582243958,20.0,237.19,237.12,12.82134134]
[1732582244160,12.82134134,237.24,237.14,12.82134134]
[1732582244357,12.82134134,237.24,237.17,12.82134134]
[1732582244358,23.776884,237.24,237.17,12.82134134]
[1732582244684,36.59822534,237.24,237.15,12.82134134]
[1732582245178,12.82134134,237.22,237.13,17.03834134]
[1732582245355,23.776884,237.21,237.13,17.03834134]
[1732582247175,23.776884,237.21,237.13,12.82134134]
[1732582247379,12.82134134,237.2,237.13,12.82134134]
[1732582248549,23.776884,237.19,237.13,12.82134134]
[1732582248758,23.776884,237.19,237.11,0.4899952]
[1732582248759,23.776884,237.17,237.11,0.4899952]
[1732582249862,23.776884,237.18,237.11,13.31133654]
[1732582250658,23.776884,237.14,237.11,0.4899952]
[1732582251586,23.776884,237.16,237.11,0.4899952]
[1732582251775,2.5297,237.18,237.11,0.4899952]
[1732582251975,23.776884,237.17,237.11,0.4899952]
[1732582252895,2.5288,237.26,237.15,12.82134134]
[1732582253104,12.82134134,237.24,237.17,12.82134134]
[1732582254804,20.0,237.21,237.15,12.82134134]
[1732582254982,23.776884,237.21,237.13,22.26004134]
[1732582255186,12.82134134,237.2,237.13,9.4387]
[1732582256108,12.82134134,237.18,237.11,13.31133654]
[1732582256399,23.776884,237.17,237.11,0.4899952]
[1732582256996,26.306684,237.17,237.11,0.4899952]
[1732582257809,26.306684,237.17,237.11,13.31133654]
[1732582258911,26.306684,237.17,237.11,0.4899952]
[1732582261019,23.776884,237.15,237.11,0.4899952]
[1732582261187,23.776884,237.13,237.11,0.4899952]
[1732582262106,36.59822534,237.12,237.11,0.4899952]
[1732582262691,20.0,237.09,236.91,4.2208]
[1732582262914,36.59822534,237.12,236.9,24.9755]
[1732582262915,23.776884,237.04,236.96,12.82134134]
[1732582264188,23.776884,237.02,236.96,12.82134134]
[1732582265501,19.14874134,237.07,236.98,12.82134134]
[1732582265706,20.0,237.04,237.0,12.82134134]
[1732582266312,2.5312,237.05,237.0,12.82134134]
[1732582266829,2.5312,237.05,236.98,12.82134134]
[1732582269832,2.5312,237.05,237.0,12.82134134]
[1732582270226,15.35254134,237.05,236.98,12.82134134]
[1732582271026,23.776884,237.04,236.96,12.82134134]
[1732582271428,2.5313,237.03,236.96,12.82134134]
[1732582271634,23.776884,237.02,236.96,12.82134134]
[1732582272340,43.776884,236.98,236.92,12.82134134]
[1732582272643,20.0,236.96,236.92,12.82134134]
[1732582273310,20.0,236.96,236.88,0.53103389]
[1732582273311,2.5321,236.95,236.91,12.82134134]
[1732582273515,12.82134134,236.94,236.88,0.53103389]
[1732582273829,2.5321,236.95,236.91,12.82134134]
[1732582274035,2.5321,236.95,236.93,12.82134134]
[1732582274337,2.5321,236.95,236.91,12.82134134]
[1732582274534,2.5321,236.95,236.88,0.53103389]
[1732582274736,2.5321,236.95,236.9,12.82134134]
[1732582276041,20.0,236.94,236.88,13.35237523]
[1732582276364,20.0,236.94,236.88,0.53103389]
[1732582276365,23.776884,236.93,236.88,0.53103389]
[1732582277454,23.776884,236.91,236.88,0.53103389]
[1732582277760,2.5325,236.92,236.88,13.35237523]
[1732582278126,23.776884,236.91,236.88,13.35237523]
[1732582278548,2.5325,236.92,236.88,13.35237523]
[1732582279353,2.5325,236.92,236.88,0.53103389]
[1732582280033,23.776884,236.92,236.88,0.53103389]
[1732582280842,23.776884,236.9,236.88,0.53103389]
[1732582281449,2.5328,236.89,236.88,0.53103389]
[1732582281756,26.309684,236.89,236.88,0.53103389]
[1732582281960,39.13102534,236.89,236.88,0.53103389]
[1732582284040,39.13102534,236.89,236.88,3.389e-05]
[1732582284862,40.13102534,236.89,236.88,3.389e-05]
[1732582285044,52.95236668,236.89,236.88,3.389e-05]
[1732582285550,20.0,236.86,236.73,12.82134134]
[1732582285751,23.776884,236.81,236.73,12.82134134]
[1732582286061,23.776884,236.81,236.75,12.82134134]
[1732582286950,20.0,236.8,236.77,12.82134134]
[1732582287151,20.0,236.86,236.79,12.82134134]
[1732582287348,2.5332,236.85,236.82,12.82134134]
[1732582289956,23.776884,236.84,236.78,12.82134134]
[1732582290347,23.776884,236.84,236.8,12.82134134]
[1732582291046,2.1112,236.83,236.79,12.82134134]
[1732582292245,20.0,236.87,236.82,12.82134134]
[1732582293444,23.776884,236.86,236.82,12.82134134]
[1732582293646,2.111,236.85,236.82,12.82134134]
[1732582293870,2.111,236.85,236.8,12.82134134]
[1732582294069,23.776884,236.84,236.78,12.82134134]
[1732582295174,23.776884,236.8,236.76,12.82134134]
[1732582295554,23.776884,236.8,236.74,12.82134134]
[1732582295753,2.1115,236.79,236.74,12.82134134]
[1732582296896,23.776884,236.85,236.77,12.82134134]
[1732582297196,2.1107,236.88,236.83,12.82134134]
[1732582297406,2.1107,236.88,236.81,12.82134134]
[1732582297575,14.93204134,236.88,236.79,12.82134134]
[1732582297970,12.82134134,236.86,236.79,12.82134134]
[1732582298290,12.82134134,236.86,236.72,4.34969]
[1732582298291,12.82134134,236.86,236.77,12.82134134]
[1732582298484,23.776884,236.85,236.77,12.82134134]
[1732582299196,23.776884,236.83,236.75,12.82134134]
[1732582300876,2.1111,236.84,236.82,12.82134134]
[1732582301771,2.1111,236.84,236.8,12.82134134]
[1732582305897,20.0,236.83,236.78,12.82134134]
[1732582306882,23.776884,236.84,236.8,12.82134134]
[1732582307798,23.776884,236.84,236.78,12.82134134]
[1732582308780,2.1112,236.83,236.78,12.82134134]
[1732582309010,23.776884,236.82,236.76,12.82134134]
[1732582310281,20.0,236.79,236.76,12.82134134]
[1732582310882,2.1117,236.77,236.72,12.82134134]
[1732582311921,22.1117,236.77,236.72,12.82134134]
[1732582313197,22.1117,236.77,236.74,12.82134134]
[1732582313531,43.776884,236.78,236.74,12.82134134]
[1732582314191,20.0,236.78,236.76,12.82134134]
[1732582314396,22.1113,236.81,236.76,12.82134134]
[1732582315261,2.1107,236.88,236.8,12.82134134]
[1732582315518,2.1107,236.88,236.83,12.82134134]
[1732582315728,2.1107,236.88,236.84,12.82134134]
[1732582317620,20.0,236.86,236.84,12.82134134]
[1732582318905,1.0,236.89,236.84,12.82134134]
[1732582319125,1.0,236.89,236.87,12.82134134]
[1732582323025,1.0,236.89,236.88,12.82134134]
[1732582323232,1.0,236.89,236.87,12.82134134]
[1732582324226,1.0,236.89,236.88,12.94683134]
[1732582324539,2.1094,237.03,236.89,0.12549]
[1732582324716,2.1094,237.03,236.99,12.82134134]
[1732582324920,2.1091,237.06,236.99,12.82134134]
[1732582325641,2.1091,237.06,237.01,12.82134134]
[1732582326253,2.1091,237.06,236.95,4.2202]
[1732582326254,47.430665,237.15,237.05,12.82134134]
[1732582326541,2.1085,237.13,237.07,12.82134134]
[1732582326734,14.92984134,237.13,237.05,12.82134134]
[1732582326933,12.82134134,237.11,237.03,12.82134134]
[1732582327525,12.82134134,237.09,237.01,12.82134134]
[1732582327755,23.776884,237.08,237.01,12.82134134]
[1732582328138,20.0,237.05,236.99,12.82134134]
[1732582328724,12.82134134,237.09,237.01,12.82134134]
[1732582329030,12.82134134,237.09,236.97,26.9029]
[1732582329031,20.0,237.08,237.03,12.82134134]
[1732582329240,20.0,237.07,237.03,12.82134134]
[1732582330127,20.0,237.07,237.01,12.82134134]
[1732582330450,20.0,237.06,237.01,12.82134134]
[1732582331238,14.92984134,237.13,237.05,12.82134134]
[1732582331645,2.1085,237.13,237.07,12.82134134]
[1732582331851,14.92984134,237.13,237.05,12.82134134]
[1732582332224,14.92984134,237.13,237.03,12.82134134]
[1732582332426,20.0,237.1,237.03,12.82134134]
[1732582332652,20.0,237.1,237.05,12.82134134]
[1732582332826,22.1086,237.12,237.05,12.82134134]
[1732582333655,20.0,237.1,237.05,12.82134134]
[1732582334364,22.1086,237.12,237.05,12.82134134]
[1732582334864,22.1086,237.12,237.07,12.82134134]
[1732582335162,20.0,237.1,237.05,12.82134134]
[1732582337062,22.1088,237.1,237.05,12.82134134]
[1732582338968,22.1088,237.1,237.03,12.82134134]
[1732582339144,2.1088,237.1,237.03,12.82134134]
[1732582339563,23.776884,237.09,237.01,12.82134134]
[1732582339751,23.776884,237.05,237.01,12.82134134]
[1732582340958,2.1093,237.04,237.01,12.82134134]
[1732582341791,2.1093,237.04,236.95,12.82134134]
[1732582341792,20.0,237.02,236.95,12.82134134]
[1732582341983,20.0,237.0,236.93,12.82134134]
[1732582342163,20.0,236.98,236.93,12.82134134]
[1732582342661,20.0,236.98,236.91,12.82134134]
[1732582342862,2.1101,236.95,236.91,12.82134134]
[1732582343067,2.1101,236.95,236.87,12.82134134]
[1732582343068,20.0,236.94,236.87,12.82134134]
[1732582343365,20.0,236.92,236.87,12.82134134]
[1732582344190,36.59822534,236.91,236.83,12.82134134]
[1732582344375,20.0,236.88,236.83,12.82134134]
[1732582344571,20.0,236.88,236.85,12.82134134]
[1732582346086,22.1105,236.91,236.87,12.82134134]
[1732582346770,22.1105,236.91,236.86,12.82134134]
[1732582347294,43.776884,236.9,236.84,12.82134134]
[1732582347670,43.776884,236.9,236.86,12.82134134]
[1732582348083,2.1101,236.95,236.88,12.82134134]
[1732582348385,2.1095,237.02,236.94,12.82134134]
[1732582348568,23.0042,237.04,236.99,12.82134134]
[1732582348772,25.1136,237.04,236.99,12.82134134]
[1732582348974,25.1136,237.04,236.97,12.82134134]
[1732582349587,25.1136,237.04,236.95,12.82134134]
[1732582349794,12.82134134,237.03,236.95,12.82134134]
[1732582350098,20.0,237.01,236.98,12.82134134]
[1732582350389,20.0,237.01,236.96,12.82134134]
[1732582350591,20.0,237.0,236.96,12.82134134]
[1732582351391,12.82134134,237.07,236.98,12.82134134]
[1732582351593,2.1091,237.07,237.0,12.82134134]
[1732582352892,23.776884,237.06,237.0,12.82134134]
[1732582353599,2.1084,237.14,237.04,12.82134134]
[1732582353891,2.1084,237.14,237.06,12.82134134]
[1732582354783,23.776884,237.13,237.06,12.82134134]
[1732582355087,20.0,237.1,237.06,12.82134134]
[1732582355481,23.776884,237.13,237.06,12.82134134]
[1732582356915,2.1086,237.12,237.06,12.82134134]
[1732582357619,20.0,237.1,237.04,12.82134134]
[1732582358002,20.0,237.06,237.02,12.82134134]
[1732582358207,20.0,237.06,237.0,12.82134134]
[1732582358709,20.0,237.04,237.0,12.82134134]
[1732582359627,23.776884,237.05,237.0,12.82134134]
[1732582359924,23.776884,237.05,236.98,12.82134134]
[1732582360099,23.776884,237.05,237.0,12.82134134]
[1732582360800,25.886084,237.05,237.0,12.82134134]
[1732582361020,20.0,237.06,237.0,12.82134134]
[1732582361224,22.1092,237.06,237.0,12.82134134]
[1732582361397,23.776884,237.05,237.0,12.82134134]
[1732582362494,2.1093,237.04,237.0,12.82134134]
[1732582363214,2.1093,237.04,236.98,12.82134134]
[1732582363416,2.1093,237.04,237.0,12.82134134]
[1732582363623,25.886084,237.05,237.0,12.82134134]
[1732582364499,2.1091,237.07,237.02,12.82134134]
[1732582364706,2.1089,237.09,237.02,12.82134134]
[1732582364900,2.1089,237.09,237.04,12.82134134]
[1732582365209,2.1087,237.11,237.04,12.82134134]
[1732582366325,2.1086,237.13,237.06,12.82134134]
[1732582366636,20.0,237.12,237.06,12.82134134]
[1732582366799,12.82134134,237.15,237.06,12.82134134]
[1732582366800,14.92974134,237.15,237.06,12.82134134]
[1732582367007,2.1084,237.15,237.1,12.82134134]
[1732582368023,2.1084,237.15,237.08,12.82134134]
[1732582368324,20.0,237.14,237.08,12.82134134]
[1732582368819,20.0,237.1,237.04,12.82134134]
[1732582370303,2.1089,237.09,237.04,12.82134134]
[1732582371235,43.776884,237.08,237.02,12.82134134]
[1732582371945,23.776884,237.03,236.98,12.82134134]
[1732582372316,2.1095,237.02,236.98,12.82134134]
[1732582373038,20.0,237.04,237.0,12.82134134]
[1732582373346,20.0,237.06,237.0,12.82134134]
[1732582373519,23.776884,237.05,237.0,12.82134134]
[1732582374930,20.0,237.07,237.02,12.82134134]
[1732582375934,2.1091,237.07,237.02,12.82134134]
[1732582377043,12.82134134,237.13,237.04,12.82134134]
[1732582377226,12.82134134,237.13,236.96,34.89559]
[1732582377227,2.1084,237.14,237.06,12.82134134]
[1732582377820,14.92934134,237.19,237.1,12.82134134]
[1732582378144,12.82134134,237.17,237.08,12.82134134]
[1732582378340,12.82134134,237.15,237.08,12.82134134]
[1732582378833,12.82134134,237.17,237.08,12.82134134]
[1732582379030,20.0,237.13,237.08,12.82134134]
[1732582379241,20.0,237.12,237.08,12.82134134]
[1732582379441,22.1086,237.12,237.06,12.82134134]
[1732582380534,23.776884,237.11,237.04,12.82134134]
[1732582381131,20.0,237.04,236.98,12.82134134]
[1732582381449,23.776884,237.03,236.96,12.82134134]
[1732582382359,23.776884,237.03,236.98,12.82134134]
[1732582383354,25.886284,237.03,236.98,12.82134134]
[1732582383733,14.93044134,237.07,237.0,12.82134134]
[1732582383943,20.0,237.06,237.0,12.82134134]
[1732582384331,23.776884,237.05,236.96,4.2199]
[1732582384647,36.59822534,237.05,236.98,12.82134134]
[1732582385434,2.1093,237.04,236.98,12.82134134]
[1732582385629,25.886084,237.05,236.98,12.82134134]
[1732582385831,25.886084,237.05,237.0,12.82134134]
[1732582387866,43.776884,237.06,237.0,12.82134134]
[1732582388243,2.1089,237.09,237.04,12.82134134]
[1732582388558,14.92974134,237.14,237.06,12.82134134]
[1732582388740,12.82134134,237.12,237.04,12.82134134]
[1732582389455,2.1087,237.11,237.04,12.82134134]
[1732582389761,20.0,237.09,237.04,12.82134134]
[1732582390837,20.0,237.09,236.96,10.5503]
[1732582390838,20.0,237.05,237.0,12.82134134]
[1732582391061,20.0,237.05,236.98,12.82134134]
[1732582391366,23.776884,237.04,236.98,12.82134134]
[1732582392437,20.0,237.05,236.96,4.2201]
[1732582392438,20.0,237.03,237.0,12.82134134]
[1732582392862,20.0,237.07,237.02,12.82134134]
[1732582393064,23.776884,237.06,237.02,12.82134134]
[1732582393361,23.776884,237.08,237.04,12.82134134]
[1732582393537,2.1087,237.11,237.04,12.82134134]
[1732582394252,12.82134134,237.1,237.02,12.82134134]
[1732582394857,22.109,237.07,237.02,12.82134134]
[1732582395852,12.82134134,237.14,237.06,12.82134134]
[1732582396171,20.0,237.11,237.06,12.82134134]
[1732582397961,22.1087,237.11,237.06,12.82134134]
[1732582398156,20.0,237.07,237.02,12.82134134]
[1732582398776,22.1087,237.11,237.04,12.82134134]
[1732582399152,20.0,237.09,237.04,12.82134134]
[1732582399763,22.1087,237.11,237.04,12.82134134]
[1732582399955,2.1085,237.13,237.04,12.82134134]
[1732582400162,25.885384,237.13,237.04,12.82134134]
[1732582401253,20.0,237.1,237.04,12.82134134]
[1732582402370,20.0,237.1,237.06,12.82134134]
[1732582403396,2.1086,237.12,237.06,12.82134134]
[1732582404385,20.0,237.11,237.06,12.82134134]
[1732582404582,22.1087,237.11,237.06,12.82134134]
[1732582404777,22.1087,237.11,237.04,12.82134134]
[1732582405178,20.0,237.09,237.04,12.82134134]
[1732582408088,22.1089,237.09,237.04,12.82134134]
[1732582408408,22.1089,237.09,236.95,40.7977]
[1732582408409,23.776884,237.08,237.0,12.82134134]
[1732582408601,2.109,237.07,237.0,12.82134134]
[1732582408905,20.0,237.06,237.0,12.82134134]
[1732582410100,2.1092,237.05,237.0,12.82134134]
[1732582410287,20.0,237.06,237.02,12.82134134]
[1732582410489,22.1091,237.06,237.02,12.82134134]
[1732582410707,22.1091,237.06,237.0,12.82134134]
[1732582411780,20.0,237.03,236.98,12.82134134]
[1732582411987,14.93044134,237.06,236.94,12.82134134]
[1732582411988,2.1097,237.0,236.94,12.82134134]
[1732582412185,20.0,236.99,236.92,12.82134134]
[1732582412791,20.0,236.97,236.92,12.82134134]
[1732582415085,22.1099,236.97,236.92,12.82134134]
[1732582415310,20.0,236.93,236.88,12.82134134]
[1732582415518,20.0,236.93,236.86,12.82134134]
[1732582416007,2.1104,236.92,236.86,12.82134134]
[1732582416206,20.0,236.91,236.84,12.82134134]
[1732582416512,23.776884,236.96,236.9,12.82134134]
[1732582416720,25.886884,236.96,236.92,12.82134134]
[1732582417398,20.0,236.96,236.92,12.82134134]
[1732582417996,20.0,236.97,236.92,12.82134134]
[1732582418999,20.0,236.95,236.9,12.82134134]
[1732582420914,22.1101,236.95,236.9,12.82134134]
[1732582421825,20.0,236.95,236.9,12.82134134]
[1732582424027,22.1101,236.95,236.9,12.82134134]
[1732582424619,20.0,236.95,236.9,12.82134134]
[1732582424931,22.11,236.97,236.9,12.82134134]
[1732582426024,22.11,236.97,236.92,12.82134134]
[1732582426420,22.11,236.97,236.9,12.82134134]
[1732582428711,23.776884,236.96,236.9,12.82134134]
[1732582429928,22.11,236.97,236.92,12.82134134]
[1732582430624,2.11,236.97,236.92,12.82134134]
[1732582431430,12.82134134,237.0,236.92,12.82134134]
[1732582431636,25.886684,236.99,236.92,12.82134134]
[1732582436423,23.776884,236.95,236.88,12.82134134]
[1732582436720,23.776884,236.95,236.9,12.82134134]
[1732582437527,7.3842,236.99,236.87,4.2216]
[1732582437528,20.0,236.97,236.92,12.82134134]
[1732582438544,22.11,236.97,236.92,12.82134134]
[1732582439745,23.776884,237.0,236.96,12.82134134]
[1732582440547,25.886584,237.0,236.96,12.82134134]
[1732582441042,25.886584,237.0,236.92,12.82134134]
[1732582441434,38.70792534,237.0,236.92,12.82134134]
[1732582442339,20.0,236.97,236.92,12.82134134]
[1732582442842,20.0,236.97,236.94,12.82134134]
[1732582443032,22.1099,236.97,236.94,12.82134134]
[1732582443238,22.1099,236.97,236.92,12.82134134]
[1732582444328,22.1099,236.97,236.9,12.82134134]
[1732582445726,22.1099,236.97,236.78,11.53059961]
[1732582445727,23.776884,236.88,236.79,4.2229]
[1732582446045,23.776884,236.88,236.82,12.82134134]
[1732582446424,20.0,236.85,236.8,12.82134134]
[1732582446828,23.776884,236.84,236.8,12.82134134]
[1732582447551,12.82134134,236.89,236.82,12.82134134]
[1732582447738,25.887584,236.88,236.82,12.82134134]
[1732582449540,23.776884,236.84,236.8,12.82134134]
[1732582449732,25.887984,236.84,236.78,12.82134134]
[1732582450054,25.887984,236.84,236.72,22.7427]
[1732582450230,25.887984,236.84,236.77,12.82134134]
[1732582450555,25.887984,236.84,236.72,22.7427]
[1732582450556,43.776884,236.8,236.75,12.82134134]
[1732582450858,43.776884,236.8,236.73,12.82134134]
[1732582451035,23.776884,236.77,236.73,12.82134134]
[1732582452457,25.888584,236.77,236.67,22.7427]
[1732582452755,25.888584,236.77,236.7,12.82134134]
[1732582452949,20.0,236.74,236.7,12.82134134]
[1732582453651,23.776884,236.77,236.72,12.82134134]
[1732582453837,2.1116,236.79,236.67,26.9679]
[1732582453838,12.82134134,236.81,236.74,12.82134134]
[1732582454047,20.0,236.8,236.76,12.82134134]
[1732582454227,20.0,236.82,236.76,12.82134134]
[1732582454657,20.0,236.8,236.76,12.82134134]
[1732582455031,20.0,236.8,236.78,12.82134134]
[1732582455341,2.1111,236.84,236.78,12.82134134]
[1732582455545,23.776884,236.83,236.78,12.82134134]
[1732582455942,23.776884,236.82,236.78,12.82134134]
[1732582456249,12.82134134,236.85,236.78,12.82134134]
[1732582456460,20.0,236.82,236.78,12.82134134]
[1732582457139,36.72314134,236.87,236.78,12.82134134]
[1732582457346,38.83404134,236.87,236.78,12.82134134]
[1732582457550,23.776884,236.86,236.78,12.82134134]
[1732582458059,23.776884,236.84,236.78,12.82134134]
[1732582458864,20.0,236.81,236.76,12.82134134]
[1732582459048,20.0,236.8,236.74,12.82134134]
[1732582460144,23.776884,236.79,236.74,12.82134134]
[1732582460339,23.776884,236.79,236.76,12.82134134]
[1732582461975,25.888484,236.79,236.74,12.82134134]
[1732582462159,25.888484,236.79,236.72,12.82134134]
[1732582462348,38.70982534,236.79,236.7,12.82134134]
[1732582462754,38.70982534,236.79,236.72,12.82134134]
[1732582465366,38.70982534,236.79,236.7,12.82134134]
[1732582465662,38.70982534,236.79,236.72,12.82134134]
[1732582467875,25.888484,236.79,236.72,12.82134134]
[1732582468261,38.70982534,236.79,236.7,12.82134134]
[1732582468447,23.776884,236.75,236.7,12.82134134]
[1732582469361,23.776884,236.75,236.65,4.2256]
[1732582469547,23.776884,236.75,236.67,12.82134134]
[1732582469873,23.776884,236.75,236.69,12.82134134]
[1732582470852,23.776884,236.75,236.71,12.82134134]
[1732582471971,25.888784,236.75,236.71,12.82134134]
[1732582472273,25.888784,236.75,236.69,12.82134134]
[1732582475187,23.776884,236.75,236.69,12.82134134]
[1732582476573,25.888784,236.75,236.69,12.82134134]
[1732582478181,36.59822534,236.71,236.64,0.4899952]
[1732582478486,25.889184,236.71,236.64,0.4899952]
[1732582478695,25.889184,236.71,236.67,12.82134134]
[1732582478993,25.889184,236.71,236.65,12.82134134]
[1732582480688,25.889184,236.71,236.64,0.4899952]
[1732582481275,25.889184,236.71,236.65,12.82134134]
[1732582484889,25.889184,236.71,236.64,0.4899952]
[1732582484890,38.71052534,236.71,236.64,0.4899952]
[1732582485092,23.776884,236.67,236.64,0.4899952]
[1732582486600,25.889484,236.67,236.64,0.4899952]
[1732582486892,23.776884,236.67,236.64,0.4899952]
[1732582487269,23.776884,236.67,236.63,12.82134134]
[1732582487504,23.776884,236.67,236.63,12.81133654]
[1732582488790,23.776884,236.69,236.63,17.03713654]
[1732582489171,36.59822534,236.69,236.61,17.04754134]
[1732582489568,23.776884,236.69,236.61,17.04754134]
[1732582490196,23.776884,236.69,236.61,12.82134134]
[1732582490395,23.776884,236.7,236.61,12.82134134]
[1732582491393,23.776884,236.66,236.61,12.82134134]
[1732582491985,23.776884,236.68,236.61,12.82134134]
[1732582492389,23.776884,236.59,236.41,22.1874]
[1732582492694,23.776884,236.59,236.51,12.82134134]
[1732582493301,23.776884,236.59,236.5,12.82134134]
[1732582493611,12.82134134,236.58,236.5,12.82134134]
[1732582493786,20.0,236.48,236.4,4.7198952]
[1732582494089,23.776884,236.46,236.4,0.4899952]
[1732582494291,23.776884,236.46,236.4,13.31133654]
[1732582495285,32.82134134,236.41,236.4,0.4899952]
[1732582495715,56.59822534,236.41,236.4,0.4899952]
[1732582496699,43.776884,236.41,236.4,0.4899952]
[1732582497015,23.776884,236.41,236.4,0.4899952]
[1732582497328,36.59822534,236.41,236.4,0.4899952]